fUSD/lending_fUSD_20251014
["ID","MTS","AMOUNT","RATE_DAILY","PERIOD"]
[391171794,1760406651851,-150.0,0.00029656,60]
[391171796,1760406651870,-150.82546024,0.00029656,60]
[391171798,1760406651883,-180.60128948,0.00029656,60]
[391171800,1760406651898,-150.0,0.00029656,60]
[391171802,1760406651911,-500.0,0.00029656,60]
[391171804,1760406651925,-150.0,0.00029656,60]
[391171806,1760406651940,-500.0,0.00029656,60]
[391171808,1760406651953,-150.0,0.00029656,60]
[391171810,1760406651967,-560.0,0.00029656,60]
[391171812,1760406651980,-560.0,0.00029656,60]
[391171814,1760406651994,-560.0,0.00029656,60]
[391171816,1760406652010,-560.0,0.00029656,60]
[391171818,1760406652024,-560.0,0.00029656,60]
[391171820,1760406652033,-560.0,0.00029656,60]
[391171822,1760406652042,-560.0,0.00029656,60]
[391171823,1760406652052,-560.0,0.00029656,60]
[391171825,1760406652064,-560.0,0.00029656,60]
[391171827,1760406652077,-560.0,0.00029656,60]
[391171828,1760406652091,-560.0,0.00029656,60]
[391171830,1760406652101,-560.0,0.00029656,60]
[391171832,1760406652111,-560.0,0.00029656,60]
[391171834,1760406652122,-560.0,0.00029656,60]
[391171836,1760406652132,-560.0,0.00029656,60]
[391171838,1760406652142,-560.0,0.00029656,60]
[391171839,1760406652152,-560.0,0.00029656,60]
[391171841,1760406652163,-560.0,0.00029656,60]
[391171843,1760406652173,-560.0,0.00029656,60]
[391171845,1760406652183,-560.0,0.00029656,60]
[391171846,1760406652192,-560.0,0.00029656,60]
[391171848,1760406652201,-560.0,0.00029656,60]
[391171850,1760406652211,-560.0,0.00029656,60]
[391171852,1760406652220,-566.04788418,0.00029656,60]
[391171854,1760406652230,-155.21031211,0.00029656,60]
[391171855,1760406652239,-151.0,0.00029656,30]
[391171857,1760406652248,-151.0,0.00029656,7]
[391171859,1760406652258,-151.0,0.00029656,30]
[391171861,1760406652267,-153.196867,0.00029656,30]
[391171863,1760406652276,-151.0,0.00029656,30]
[391171864,1760406652285,-151.0,0.00029656,30]
[391171866,1760406652296,-151.0,0.00029656,30]
[391171868,1760406652305,-155.763267,0.00029656,30]
[391171870,1760406652316,-150.0,0.00029656,2]
[391171871,1760406652325,-500.0,0.00029656,60]
[391171873,1760406652335,-500.0,0.00029656,60]
[391171875,1760406652343,-153.43827961,0.00029656,60]
[391171877,1760406652353,-500.0,0.00029656,60]
[391171878,1760406652362,-160.47806306,0.00029659,2]
[391171880,1760406652373,-160.47806306,0.00029666,2]
[391171882,1760406652387,-500.0,0.0002967,7]
[391171884,1760406652396,-500.0,0.0002967,7]
[391171886,1760406652406,-597.76830081,0.0002967,7]
[391171888,1760406652416,-706.75,0.0002967,7]
[391171890,1760406652426,-830.21,0.0002967,7]
[391171950,1760406653235,-500.0,0.0002967,7]
[391171955,1760406653270,-500.0,0.0002967,7]
[391171960,1760406653304,-1247.59,0.0002967,7]
[391171964,1760406653338,-500.0,0.0002967,7]
[391171968,1760406653362,-1284.45,0.0002967,7]
[391171972,1760406653388,-154.483883,0.00029671,30]
[391171975,1760406653410,-151.0,0.00029671,30]
[391171977,1760406653420,-151.0,0.00029671,30]
[391171979,1760406653429,-151.0,0.00029671,30]
[391171981,1760406653438,-152.198768,0.00029671,30]
[391171983,1760406653448,-151.0,0.00029671,30]
[391171985,1760406653458,-151.0,0.00029671,30]
[391171987,1760406653468,-151.0,0.00029671,30]
[391171989,1760406653477,-151.0,0.00029671,30]
[391171991,1760406653486,-151.0,0.00029671,30]
[391171993,1760406653495,-194.964288,0.00029671,30]
[391171995,1760406653504,-194.964288,0.00029671,30]
[391171997,1760406653513,-194.964288,0.00029671,30]
[391171999,1760406653523,-194.964288,0.00029671,30]
[391172001,1760406653532,-151.0,0.00029671,30]
[391172003,1760406653541,-153.77657523,0.00029671,7]
[391172005,1760406653550,-500.6594555,0.00029673,5]
[391172007,1760406653559,-500.0,0.00029673,3]
[391172009,1760406653569,-500.0,0.00029673,5]
[391172011,1760406653578,-501.11402236,0.00029673,5]
[391172013,1760406653588,-500.0,0.00029673,5]
[391172015,1760406653597,-500.69888287,0.00029673,5]
[391172017,1760406653608,-501.75575099,0.00029673,5]
[391172019,1760406653619,-501.68399549,0.00029673,5]
[391172021,1760406653628,-500.0,0.00029673,2]
[391172023,1760406653638,-1450.73485128,0.00029674,2]
[391172026,1760406653647,-160.47806306,0.00029674,2]
[391172027,1760406653656,-634.13,0.00029674,7]
[391172029,1760406653665,-829.51,0.00029674,7]
[391172032,1760406653675,-500.0,0.00029674,7]
[391172034,1760406653685,-500.0,0.00029674,7]
[391172036,1760406653694,-500.0,0.00029674,7]
[391172038,1760406653704,-500.0,0.00029674,7]
[391172040,1760406653713,-749.77,0.00029674,7]
[391172042,1760406653722,-500.0,0.00029674,7]
[391172044,1760406653731,-519.05,0.00029674,7]
[391172046,1760406653740,-641.13,0.00029674,7]
[391172048,1760406653750,-208.5306747,0.00029674,7]
[391172050,1760406653759,-1064.39,0.00029674,7]
[391172052,1760406653768,-647.77,0.00029674,7]
[391172054,1760406653778,-500.0,0.00029674,7]
[391172056,1760406653787,-500.0,0.00029674,7]
[391172058,1760406653796,-503.51,0.00029674,7]
[391172060,1760406653807,-500.0,0.00029674,7]
[391172062,1760406653816,-500.0,0.00029674,7]
[391172064,1760406653826,-500.0,0.00029674,7]
[391172066,1760406653834,-500.0,0.00029674,7]
[391172068,1760406653844,-500.0,0.00029674,7]
[391172070,1760406653853,-500.0,0.00029674,7]
[391172072,1760406653866,-500.0,0.00029674,7]
[391172074,1760406653875,-798.23,0.00029674,7]
[391172076,1760406653884,-1270.88,0.00029674,7]
[391172078,1760406653893,-500.0,0.00029674,7]
[391172080,1760406653905,-500.0,0.00029674,7]
[391172082,1760406653915,-1690.28,0.00029674,7]
[391172084,1760406653924,-1676.35,0.00029674,7]
[391172086,1760406653934,-506.13125395,0.00029674,7]
[391172088,1760406653945,-500.0,0.00029674,7]
[391172090,1760406653955,-500.0,0.00029674,7]
[391172092,1760406653964,-669.18,0.00029674,7]
[391172094,1760406653973,-500.0,0.00029674,7]
[391172096,1760406653982,-500.0,0.00029674,7]
[391172098,1760406653992,-500.0,0.00029674,7]
[391172100,1760406654001,-989.52,0.00029674,7]
[391172102,1760406654011,-500.0,0.00029674,7]
[391172104,1760406654021,-1383.96,0.00029674,7]
[391172106,1760406654030,-500.0,0.00029674,7]
[391172108,1760406654040,-500.0,0.00029674,7]
[391172110,1760406654049,-198.53500248,0.00029674,15]
[391172112,1760406654059,-500.0,0.00029674,7]
[391172114,1760406654069,-1064.26,0.00029674,7]
[391172116,1760406654078,-580.22,0.00029674,7]
[391172118,1760406654088,-500.0,0.00029674,7]
[391172120,1760406654097,-500.0,0.00029674,7]
[391172122,1760406654106,-500.0,0.00029674,7]
[391172124,1760406654115,-1844.75,0.00029674,7]
[391172126,1760406654124,-272.96534894,0.00029674,2]
[391172128,1760406654133,-200.43323475,0.00029674,5]
[391172130,1760406654142,-500.0,0.00029674,7]
[391172132,1760406654151,-500.0,0.00029674,7]
[391172134,1760406654160,-500.0,0.00029674,7]
[391172136,1760406654170,-500.0,0.00029674,7]
[391172138,1760406654181,-576.18,0.00029674,7]
[391172140,1760406654190,-500.0,0.00029674,7]
[391172142,1760406654200,-2167.78809543,0.00029674,2]
[391172144,1760406654210,-3870.95,0.00029674,7]
[391172146,1760406654220,-1077.71,0.00029674,7]
[391172148,1760406654230,-773.84,0.00029674,7]
[391172151,1760406654240,-500.0,0.00029674,7]
[391172153,1760406654250,-500.0,0.00029674,7]
[391172155,1760406654260,-500.0,0.00029674,7]
[391172157,1760406654270,-781.96,0.00029674,7]
[391172159,1760406654279,-269.0201,0.00029674,7]
[391172161,1760406654288,-1513.34,0.00029675,7]
[391172163,1760406654298,-635.72,0.00029675,7]
[391172165,1760406654307,-500.0,0.00029675,7]
[391172167,1760406654317,-500.0,0.00029675,7]
[391172169,1760406654327,-500.0,0.00029675,7]
[391172171,1760406654336,-500.0,0.00029675,7]
[391172173,1760406654345,-500.0,0.00029675,7]
[391172175,1760406654355,-500.0,0.00029675,7]
[391172177,1760406654364,-500.0,0.00029675,7]
[391172179,1760406654373,-500.0,0.00029675,7]
[391172181,1760406654382,-501.64391715,0.00029675,7]
[391172183,1760406654391,-727.5,0.00029675,7]
[391172185,1760406654400,-500.0,0.00029675,7]
[391172187,1760406654410,-500.0,0.00029675,7]
[391172189,1760406654419,-500.0,0.00029675,7]
[391172191,1760406654428,-500.0,0.00029675,7]
[391172193,1760406654437,-500.0,0.00029675,7]
[391172195,1760406654447,-500.0,0.00029675,7]
[391172197,1760406654456,-500.0,0.00029675,7]
[391172199,1760406654466,-500.0,0.00029675,7]
[391172201,1760406654475,-500.0,0.00029675,7]
[391172203,1760406654484,-500.0,0.00029675,7]
[391172205,1760406654493,-500.0,0.00029675,7]
[391172207,1760406654504,-339.35258509,0.00029675,7]
[391172209,1760406654512,-1558.87,0.00029675,7]
[391172211,1760406654522,-751.92,0.00029675,7]
[391172213,1760406654531,-500.0,0.00029675,7]
[391172215,1760406654540,-500.0,0.00029675,7]
[391172217,1760406654549,-500.0,0.00029675,7]
[391172219,1760406654558,-1114.81,0.00029675,7]
[391172221,1760406654567,-821.23,0.00029675,7]
[391172223,1760406654576,-960.28,0.00029675,7]
[391172225,1760406654586,-1319.8,0.00029675,7]
[391172227,1760406654594,-1075.52,0.00029675,7]
[391172229,1760406654603,-526.18,0.00029675,7]
[391172231,1760406654612,-601.6,0.00029675,7]
[391172233,1760406654621,-500.0,0.00029675,7]
[391172235,1760406654630,-691.78,0.00029675,7]
[391172237,1760406654639,-500.0,0.00029675,7]
[391172239,1760406654648,-500.0,0.00029675,7]
[391172241,1760406654657,-500.0,0.00029675,7]
[391172243,1760406654666,-500.0,0.00029675,7]
[391172245,1760406654676,-1119.17,0.00029675,7]
[391172247,1760406654684,-500.0,0.00029675,7]
[391172249,1760406654693,-610.84,0.00029675,7]
[391172251,1760406654702,-500.0,0.00029675,7]
[391172253,1760406654711,-500.0,0.00029675,7]
[391172255,1760406654722,-781.82,0.00029675,7]
[391172257,1760406654731,-699.45,0.00029675,7]
[391172259,1760406654739,-500.0,0.00029675,7]
[391172260,1760406654749,-500.0,0.00029675,7]
[391172262,1760406654760,-500.0,0.00029675,7]
[391172264,1760406654769,-693.64,0.00029675,7]
[391172266,1760406654778,-500.0,0.00029675,7]
[391172269,1760406654787,-500.0,0.00029675,7]
[391172271,1760406654796,-839.79,0.00029675,7]
[391172273,1760406654805,-500.0,0.00029675,7]
[391172275,1760406654814,-711.99,0.00029675,7]
[391172277,1760406654824,-1478.17,0.00029675,7]
[391172279,1760406654833,-500.0,0.00029675,7]
[391172281,1760406654842,-501.73,0.00029675,7]
[391172283,1760406654851,-216.76781134,0.00029675,7]
[391172285,1760406654861,-539.33,0.00029675,7]
[391172286,1760406654872,-500.0,0.00029675,7]
[391172289,1760406654882,-500.0,0.00029675,7]
[391172290,1760406654891,-500.0,0.00029675,7]
[391172292,1760406654900,-554.47,0.00029675,7]
[391172295,1760406654910,-500.0,0.00029675,7]
[391172297,1760406654919,-500.0,0.00029675,7]
[391172299,1760406654928,-1600.42,0.00029675,7]
[391172301,1760406654937,-724.53,0.00029675,7]
[391172303,1760406654948,-500.0,0.00029675,7]
[391172305,1760406654957,-500.0,0.00029675,7]
[391172307,1760406654967,-800.62,0.00029675,7]
[391172309,1760406654976,-500.0,0.00029675,7]
[391172311,1760406654985,-500.0,0.00029675,7]
[391172313,1760406654994,-1081.45,0.00029675,7]
[391172315,1760406655004,-1154.7,0.00029675,7]
[391172317,1760406655014,-500.0,0.00029675,7]
[391172319,1760406655023,-702.56,0.00029675,7]
[391172321,1760406655032,-500.0,0.00029675,7]
[391172323,1760406655042,-500.0,0.00029675,7]
[391172325,1760406655051,-500.0,0.00029675,7]
[391172327,1760406655060,-832.47,0.00029675,7]
[391172329,1760406655069,-500.0,0.00029675,7]
[391172331,1760406655079,-500.0,0.00029675,7]
[391172333,1760406655088,-500.0,0.00029675,7]
[391172335,1760406655098,-607.0,0.00029675,7]
[391172337,1760406655107,-599.67,0.00029675,7]
[391172339,1760406655117,-1119.19,0.00029675,7]
[391172341,1760406655127,-664.59,0.00029675,7]
[391172343,1760406655136,-500.0,0.00029675,7]
[391172345,1760406655145,-500.0,0.00029675,7]
[391172347,1760406655154,-500.0,0.00029675,7]
[391172349,1760406655163,-1136.06,0.00029675,7]
[391172351,1760406655172,-500.0,0.00029675,7]
[391172353,1760406655182,-1181.03,0.00029675,7]
[391172355,1760406655191,-500.0,0.00029675,7]
[391172357,1760406655200,-584.17,0.00029675,7]
[391172359,1760406655209,-569.36,0.00029675,7]
[391172361,1760406655218,-500.0,0.00029675,7]
[391172363,1760406655228,-500.0,0.00029675,7]
[391172365,1760406655237,-500.0,0.00029675,7]
[391172367,1760406655246,-500.0,0.00029675,7]
[391172369,1760406655256,-301.12591134,0.00029675,7]
[391172371,1760406655265,-500.0,0.00029675,7]
[391172373,1760406655274,-500.0,0.00029675,7]
[391172375,1760406655283,-681.82,0.00029675,7]
[391172377,1760406655292,-1031.76,0.00029675,7]
[391172379,1760406655301,-500.0,0.00029675,7]
[391172381,1760406655311,-726.39,0.00029675,7]
[391172383,1760406655319,-500.0,0.00029675,7]
[391172385,1760406655330,-500.0,0.00029675,7]
[391172387,1760406655340,-500.0,0.00029675,7]
[391172389,1760406655349,-886.93,0.00029675,7]
[391172391,1760406655358,-500.0,0.00029675,7]
[391172393,1760406655367,-564.68,0.00029675,7]
[391172395,1760406655376,-841.5,0.00029675,7]
[391172397,1760406655385,-900.66,0.00029675,7]
[391172399,1760406655394,-500.0,0.00029675,7]
[391172401,1760406655403,-706.75,0.00029675,7]
[391172403,1760406655412,-2000.0,0.00029675,30]
[391172405,1760406655420,-531.71,0.00029675,7]
[391172407,1760406655431,-500.0,0.00029675,7]
[391172409,1760406655440,-830.21,0.00029675,7]
[391172411,1760406655450,-500.0,0.00029675,7]
[391172413,1760406655459,-500.0,0.00029675,7]
[391172415,1760406655468,-500.0,0.00029675,7]
[391172417,1760406655477,-500.0,0.00029675,7]
[391172419,1760406655486,-1247.59,0.00029675,7]
[391172421,1760406655495,-1284.45,0.00029675,7]
[391172423,1760406655506,-500.0,0.00029675,7]
[391172425,1760406655515,-525.27,0.00029676,2]
[391172427,1760406655525,-3167.65,0.00029676,7]
[391172429,1760406655534,-500.0,0.00029676,7]
[391172431,1760406655543,-500.0,0.00029676,7]
[391172433,1760406655552,-748.44,0.00029676,7]
[391172435,1760406655562,-1292.5,0.00029676,7]
[391172437,1760406655571,-4546.31,0.00029676,7]
[391172439,1760406655579,-2338.93,0.00029676,7]
[391172441,1760406655588,-500.0,0.00029676,7]
[391172443,1760406655598,-500.0,0.00029676,7]
[391172445,1760406655606,-500.0,0.00029676,7]
[391172447,1760406655615,-500.0,0.00029676,7]
[391172449,1760406655624,-727.86,0.00029676,7]
[391172451,1760406655635,-758.57,0.00029676,7]
[391172453,1760406655644,-628.16,0.00029676,7]
[391172455,1760406655653,-645.96,0.00029676,7]
[391172457,1760406655663,-1320.2,0.00029676,7]
[391172459,1760406655672,-647.19,0.00029676,7]
[391172461,1760406655681,-517.46,0.00029676,7]
[391172463,1760406655689,-607.61,0.00029676,7]
[391172465,1760406655699,-500.0,0.00029676,7]
[391172467,1760406655708,-601.23,0.00029676,7]
[391172469,1760406655718,-736.8,0.00029676,7]
[391172471,1760406655728,-604.58,0.00029676,7]
[391172473,1760406655738,-174.04784337,0.00029676,7]
[391172475,1760406655747,-500.0,0.00029676,7]
[391172477,1760406655758,-213.43714296,0.00029676,7]
[391172480,1760406655767,-500.0,0.00029676,7]
[391172482,1760406655776,-500.0,0.00029676,7]
[391172483,1760406655785,-519.51,0.00029676,7]
[391172484,1760406655795,-500.0,0.00029676,7]
[391172485,1760406655812,-610.9,0.00029676,7]
[391172486,1760406655824,-729.21,0.00029676,7]
[391172487,1760406655835,-500.0,0.00029676,7]
[391172488,1760406655845,-500.0,0.00029676,7]
[391172489,1760406655855,-500.0,0.00029676,7]
[391172490,1760406655868,-500.0,0.00029676,7]
[391172491,1760406655878,-500.0,0.00029676,7]
[391172493,1760406655887,-500.0,0.00029676,7]
[391172495,1760406655897,-500.0,0.00029676,7]
[391172497,1760406655908,-1102.61,0.00029676,7]
[391172499,1760406655918,-699.88,0.00029676,7]
[391172501,1760406655927,-545.68,0.00029676,7]
[391172503,1760406655940,-500.0,0.00029676,7]
[391172505,1760406655949,-500.0,0.00029676,7]
[391172507,1760406655959,-500.0,0.00029676,7]
[391172509,1760406655969,-1017.91,0.00029676,7]
[391172511,1760406655979,-768.73,0.00029676,7]
[391172513,1760406655988,-958.73,0.00029676,7]
[391172515,1760406655998,-705.84,0.00029676,7]
[391172517,1760406656008,-849.54,0.00029676,7]
[391172519,1760406656018,-500.0,0.00029676,7]
[391172521,1760406656027,-614.94,0.00029676,7]
[391172524,1760406656038,-4737.55,0.00029676,7]
[391172526,1760406656049,-985.56,0.00029676,7]
[391172528,1760406656059,-530.29,0.00029676,7]
[391172530,1760406656069,-500.0,0.00029676,7]
[391172532,1760406656078,-500.0,0.00029676,7]
[391172534,1760406656088,-500.0,0.00029676,7]
[391172536,1760406656098,-500.0,0.00029676,7]
[391172538,1760406656107,-500.0,0.00029676,7]
[391172540,1760406656117,-861.46,0.00029676,7]
[391172542,1760406656126,-725.44,0.00029676,7]
[391172544,1760406656136,-500.0,0.00029676,7]
[391172546,1760406656145,-500.0,0.00029676,7]
[391172548,1760406656155,-675.82,0.00029676,7]
[391172551,1760406656165,-500.0,0.00029676,7]
[391172553,1760406656179,-500.0,0.00029676,7]
[391172555,1760406656189,-2609.39,0.00029676,7]
[391172557,1760406656199,-500.0,0.00029676,7]
[391172559,1760406656209,-500.0,0.00029676,7]
[391172562,1760406656219,-3523.02,0.00029676,7]
[391172564,1760406656229,-657.38,0.00029676,7]
[391172566,1760406656239,-945.54,0.00029676,7]
[391172568,1760406656250,-1037.6,0.00029676,7]
[391172570,1760406656260,-1879.5,0.00029676,7]
[391172572,1760406656270,-971.48,0.00029676,7]
[391172574,1760406656279,-500.0,0.00029676,7]
[391172576,1760406656290,-792.12,0.00029676,7]
[391172578,1760406656300,-500.0,0.00029676,7]
[391172580,1760406656310,-500.0,0.00029676,7]
[391172582,1760406656320,-1205.82,0.00029676,7]
[391172585,1760406656330,-500.0,0.00029676,7]
[391172587,1760406656340,-500.0,0.00029676,7]
[391172589,1760406656350,-500.0,0.00029676,7]
[391172591,1760406656360,-500.0,0.00029676,7]
[391172593,1760406656370,-500.0,0.00029676,7]
[391172595,1760406656380,-536.36,0.00029676,7]
[391172597,1760406656390,-500.0,0.00029676,7]
[391172600,1760406656400,-500.0,0.00029676,7]
[391172602,1760406656410,-1499.03,0.00029676,7]
[391172604,1760406656420,-945.47,0.00029676,7]
[391172606,1760406656430,-500.0,0.00029676,7]
[391172608,1760406656440,-2779.37,0.00029676,7]
[391172610,1760406656450,-500.0,0.00029676,7]
[391172612,1760406656460,-6413.98,0.00029676,7]
[391172614,1760406656470,-996.93,0.00029676,7]
[391172616,1760406656480,-500.0,0.00029676,7]
[391172618,1760406656491,-915.89,0.00029676,7]
[391172621,1760406656500,-874.33,0.00029676,7]
[391172623,1760406656511,-724.86,0.00029676,7]
[391172625,1760406656521,-500.0,0.00029676,7]
[391172627,1760406656531,-634.13,0.00029676,7]
[391172630,1760406656547,-2774.83,0.00029676,7]
[391172632,1760406656557,-1685.75,0.00029676,7]
[391172634,1760406656567,-884.57,0.00029676,7]
[391172636,1760406656577,-815.59,0.00029676,7]
[391172638,1760406656587,-500.0,0.00029676,7]
[391172640,1760406656597,-500.0,0.00029676,7]
[391172642,1760406656607,-756.63,0.00029676,7]
[391172644,1760406656617,-1025.9,0.00029676,7]
[391172646,1760406656627,-684.59,0.00029676,7]
[391172648,1760406656637,-9520.66,0.00029676,7]
[391172651,1760406656648,-1429.17,0.00029676,7]
[391172653,1760406656658,-500.0,0.00029676,7]
[391172655,1760406656668,-617.9,0.00029676,7]
[391172657,1760406656679,-710.6,0.00029676,7]
[391172702,1760406657096,-3600.66,0.00029676,7]
[391172706,1760406657120,-500.0,0.00029676,7]
[391172708,1760406657130,-500.0,0.00029676,7]
[391172710,1760406657139,-500.0,0.00029676,7]
[391172712,1760406657148,-500.0,0.00029676,7]
[391172714,1760406657158,-4555.89,0.00029676,7]
[391172716,1760406657170,-536.26,0.00029676,7]
[391172719,1760406657180,-500.0,0.00029676,7]
[391172721,1760406657190,-500.0,0.00029676,7]
[391172723,1760406657199,-1112.59,0.00029676,7]
[391172725,1760406657208,-1168.89,0.00029676,7]
[391172727,1760406657217,-628.4,0.00029676,7]
[391172729,1760406657229,-500.0,0.00029676,7]
[391172731,1760406657239,-500.0,0.00029676,7]
[391172733,1760406657248,-829.51,0.00029676,7]
[391172735,1760406657258,-500.0,0.00029676,7]
[391172737,1760406657267,-618.59,0.00029676,7]
[391172739,1760406657277,-500.0,0.00029676,7]
[391172741,1760406657287,-500.0,0.00029676,7]
[391172743,1760406657296,-500.0,0.00029676,7]
[391172745,1760406657305,-763.73,0.00029676,7]
[391172747,1760406657315,-11166.57,0.00029676,7]
[391172749,1760406657323,-500.0,0.00029676,7]
[391172751,1760406657333,-500.0,0.00029676,7]
[391172753,1760406657342,-500.0,0.00029676,7]
[391172755,1760406657352,-826.85,0.00029676,7]
[391172757,1760406657364,-2268.44,0.00029676,7]
[391172759,1760406657373,-500.0,0.00029676,7]
[391172761,1760406657382,-500.0,0.00029676,7]
[391172764,1760406657392,-3229.72,0.00029676,7]
[391172766,1760406657401,-500.0,0.00029676,7]
[391172768,1760406657410,-500.0,0.00029676,7]
[391172770,1760406657420,-500.0,0.00029676,7]
[391172772,1760406657429,-553.15,0.00029676,7]
[391172774,1760406657438,-998.07,0.00029676,7]
[391172776,1760406657447,-749.77,0.00029676,7]
[391172778,1760406657457,-787.61,0.00029676,7]
[391172780,1760406657466,-500.0,0.00029676,7]
[391172782,1760406657475,-578.29,0.00029676,7]
[391172784,1760406657484,-813.77,0.00029676,7]
[391172786,1760406657493,-519.05,0.00029676,7]
[391172788,1760406657503,-151.0,0.00029676,30]
[391172790,1760406657513,-639.7,0.00029676,7]
[391172792,1760406657522,-500.0,0.00029676,7]
[391172794,1760406657532,-151.0,0.00029676,30]
[391172796,1760406657541,-505.54,0.00029676,7]
[391172799,1760406657550,-641.13,0.00029676,7]
[391172801,1760406657559,-213.171821,0.00029676,30]
[391172803,1760406657568,-500.0,0.00029676,7]
[391172805,1760406657578,-2699.29,0.00029676,7]
[391172807,1760406657587,-1064.39,0.00029676,7]
[391172809,1760406657595,-1736.31,0.00029676,7]
[391172811,1760406657605,-647.77,0.00029676,7]
[391172813,1760406657614,-500.0,0.00029676,7]
[391172815,1760406657624,-500.0,0.00029676,7]
[391172817,1760406657633,-842.03,0.00029676,7]
[391172819,1760406657642,-500.0,0.00029676,7]
[391172821,1760406657651,-500.0,0.00029676,7]
[391172823,1760406657661,-503.51,0.00029676,7]
[391172825,1760406657670,-6662.48,0.00029676,7]
[391172827,1760406657680,-500.0,0.00029676,7]
[391172829,1760406657689,-570.8,0.00029676,7]
[391172831,1760406657699,-1442.32,0.00029676,7]
[391172833,1760406657709,-2505.1,0.00029676,7]
[391172835,1760406657718,-500.0,0.00029676,7]
[391172837,1760406657727,-500.0,0.00029676,7]
[391172840,1760406657736,-500.0,0.00029676,7]
[391172842,1760406657746,-500.0,0.00029676,7]
[391172845,1760406657765,-500.0,0.00029676,7]
[391172847,1760406657774,-500.0,0.00029676,7]
[391172849,1760406657784,-500.0,0.00029676,7]
[391172851,1760406657794,-194.964288,0.00029676,30]
[391172853,1760406657804,-637.86,0.00029676,7]
[391172855,1760406657814,-1160.68,0.00029676,7]
[391172857,1760406657824,-194.964288,0.00029676,30]
[391172859,1760406657834,-500.0,0.00029676,7]
[391172861,1760406657844,-194.964288,0.00029676,30]
[391172863,1760406657854,-500.0,0.00029676,7]
[391172865,1760406657867,-194.964288,0.00029676,30]
[391172867,1760406657877,-798.23,0.00029676,7]
[391172869,1760406657886,-500.0,0.00029676,7]
[391172871,1760406657895,-1270.88,0.00029676,7]
[391172873,1760406657907,-500.0,0.00029676,7]
[391172876,1760406657916,-500.0,0.00029676,7]
[391172878,1760406657926,-500.0,0.00029676,7]
[391172880,1760406657936,-500.0,0.00029676,7]
[391172882,1760406657948,-500.0,0.00029676,7]
[391172884,1760406657958,-1690.28,0.00029676,7]
[391172886,1760406657969,-500.0,0.00029676,7]
[391172888,1760406657979,-1676.35,0.00029676,7]
[391172890,1760406657990,-622.52,0.00029676,7]
[391172893,1760406658000,-1041.56,0.00029676,7]
[391172895,1760406658011,-500.0,0.00029676,7]
[391172897,1760406658020,-500.0,0.00029676,7]
[391172899,1760406658031,-669.18,0.00029676,7]
[391172901,1760406658042,-781.32,0.00029676,7]
[391172903,1760406658051,-500.0,0.00029676,7]
[391172905,1760406658061,-1786.3,0.00029676,7]
[391172907,1760406658072,-833.38,0.00029676,7]
[391172909,1760406658081,-500.0,0.00029676,7]